{"text_format":"1","workbook":"xlsx","n_sheets":2,"sheets":["Blad1","Blad2"],"not_rendered":{"charts":0,"images":0,"macros":1,"external_links":0,"defined_names":0,"comments":0,"pivot_tables":0},"unopened":[],"bounds":{"document_bytes":16777216,"sheet_cells":100000,"rows_first":2000,"rows_last":500,"rows_between":2000,"halvings":0,"cell_chars":16384,"cell_head_chars":4096},"cells_cut":0,"cells_raw":0,"read":"whole","date_system":"1900"}

{"sheet":"Blad1","index":0,"n_rows":38,"n_cols":13,"rows_kept":38,"cut":false,"hidden":false,"merged":[]}
[501,501,"Thuis","Uit",null,null,null,null,"Naam en Voornaam",1,2,3,"Totaal"]
[{"$f":"IF(C2=\"\",\"\",A1-C2)","v":""},{"$f":"IF(D2=\"\",\"\",B1-D2)","v":""},null,null,1,null,null,"Thuis",null,null,null,null,{"$f":"SUM(J2:L2)","v":0}]
["","",null,null,2,null,null,"Uit",null,null,null,null,{"$f":"SUM(J3:L3)","v":0}]
["","",null,null,3]
["","",null,null,4]
["","",null,null,5]
["","",null,null,6]
["","",null,null,7]
["","",null,null,8]
["","",null,null,9]
["","",null,null,10]
["","",null,null,11]
["","",null,null,12]
["","",null,null,13]
["","",null,null,14]
["","",null,null,15]
["","",null,null,16]
["","",null,null,17]
["","",null,null,18]
["","",null,null,19]
["","",null,null,20]
["","",null,null,21]
["","",null,null,22]
["","",null,null,23]
["","",null,null,24]
["","",null,null,25]
["","",null,null,26]
["","",null,null,27]
["","",null,null,28]
["","",null,null,29]
[{"$f":"IF(C31=\"\",\"\",A30-C31)","v":""},{"$f":"IF(D31=\"\",\"\",B30-D31)","v":""},null,null,30]
["","",null,null,31]
[{"$f":"IF(C33=\"\",\"\",A32-C33)","v":""},{"$f":"IF(D33=\"\",\"\",B32-D33)","v":""},null,null,32]
["","",null,null,33]
["","",null,null,34]
["","",null,null,35]
["","",null,null,36]
["","",null,null,37]

{"sheet":"Blad2","index":1,"n_rows":48,"n_cols":10,"rows_kept":48,"cut":false,"hidden":false,"merged":[]}
[null,null,null,"Wedstrijdformulier"]
[]
["Competitie-Divisie",null,null,null,null,null,null,"Datum"]
[null,"Naam Thuisteam",null,null,null,null,"Naam Uitteam"]
[]
[null,"Naam",null,null,"Lidnr",null,"Naam",null,null,"Lidnr"]
["A",null,null,null,null,"E"]
["B",null,null,null,null,"F"]
["C",null,null,null,null,"G"]
["D",null,null,null,null,"H"]
["Res",null,null,null,null,"Res"]
[]
[null,null,"Start",null,"Spelers",null,"                  Legs",null,"            Games"]
[null,null,"Uit",1]
[null,null,"Thuis",2]
[null,null,"Uit",3]
[null,null,"Thuis",4]
[null,null,"Uit",5]
[null,null,"Thuis",6]
[null,null,"Uit",7]
[null,null,"Thuis",8]
[null,null,"Bullen",9]
[null,1]
[null,2,"Singles"]
[null,3]
[null,4]
[null,5]
[null,6,"Koppels"]
[null,7]
[null,8]
[null,9]
[null,null,null,null,"Eindstand"]
[]
[null,null,"x180","HF","SL<13",null,null,"x180","HF","SL<13"]
[null,"Speler A",null,null,null,null,"Speler E"]
[null,"Speler B",null,null,null,null,"Speler F"]
[null,"Speler C",null,null,null,null,"Speler G"]
[null,"Speler D",null,null,null,null,"Speler H"]
[null,"Speler Res",null,null,null,null,"Speler Res"]
[]
[]
[null,"Handtekening Captain Thuisteam",null,null,null,null,"Handtekening Captain Uitteam"]
[]
[]
[]
[]
[]
[null,"Naam Afzender"]